[Event "FIDE World Cup O12-A 2024"]
[Site "Batumi"]
[Date "2024.06.23"]
[Round "1.8"]
[White "Berdashkevich, Makar"]
[Black "Kleschevnikov, Arseny"]
[Result "1/2-1/2"]
[ECO "B55"]
[WhiteElo "1650"]
[BlackElo "1895"]
[Annotator "NA RC"]
[PlyCount "114"]
[EventDate "2024.06.23"]
[EventType "swiss"]
[EventCountry "GEO"]
[SourceTitle "playchess.com"]
[Source "ChessBase"]
[SourceQuality "1"]
[TimeControl "5400+30"]

1. e4 {[%emt 0:01:16]} c5 {[%emt 0:00:06]} 2. Nf3 {[%emt 0:00:17]} d6 {[%emt 0:00:04]} 3. d4 {[%emt 0:00:14]} cxd4 {[%emt 0:00:07]} 4. Nxd4 {[%emt 0:00:07]} Nf6 {[%emt 0:00:04]} 5. f3 {[%emt 0:00:46]} e5 {[%emt 0:00:12]} 6. Nb3 {[%emt 0:00:10]} d5 {[%emt 0:00:21]} 7. Bg5 {[%emt 0:00:34]} Be6 {[%emt 0:01:01]} 8. Bxf6 {[%emt 0:01:38]} gxf6 {[%emt 0:00:06]} 9. exd5 {[%emt 0:00:19]} Qxd5 {[%emt 0:00:14]} 10. Qxd5 {[%emt 0:01:17]} Bxd5 {[%emt 0:00:04]} 11. Nc3 {[%emt 0:01:11]} Be6 {[%emt 0:00:10]} 12. O-O-O {[%emt 0:01:46]} Nc6 {[%emt 0:00:49]} 13. Bb5 {[%emt 0:06:36]} Rc8 {[%emt 0:03:17]} 14. Ne4 {[%emt 0:16:50]} Ke7 {[%emt 0:08:04]} 15. c3 {[%emt 0:17:46]} b6 {[%emt 0:21:42]} 16. Kb1 {[%emt 0:07:33]} h5 {[%emt 0:09:34]} 17. Rhe1 {[%emt 0:08:50]} Bh6 {[%emt 0:05:23]} 18. Nc1 {[%emt 0:09:19]} f5 {[%emt 0:18:49]} 19. Nd6 {[%emt 0:09:36]} Rc7 {[%emt 0:02:16]} 20. Bc4 {[%emt 0:03:18]} Rd7 {[%emt 0:04:57]} 21. Bxe6 {[%emt 0:00:36]} fxe6 {[%emt 0:00:16]} 22. Nc4 {[%emt 0:01:29]} Rxd1 {[%emt 0:10:04]} 23. Rxd1 {[%emt 0:00:09]} Rg8 {[%emt 0:00:02]} 24. g3 {[%emt 0:03:27]} h4 {[%emt 0:03:31]} 25. Ne2 {[%emt 0:00:33]} b5 {[%emt 0:02:27]} 26. Na3 {[%emt 0:01:23]} a6 {[%emt 0:01:04]} 27. Nc2 {[%emt 0:00:59]} Bg5 {[%emt 0:09:16]} 28. Ne1 {[%emt 0:04:48]} hxg3 {[%emt 0:00:00]} 29. hxg3 {[%emt 0:00:51]} Be3 {[%emt 0:00:00]} 30. Kc2 {[%emt 0:01:52]} Rh8 {[%emt 0:00:00]} 31. b3 {[%emt 0:00:00]} Rh2 {[%emt 0:02:00]} 32. Kd3 {[%emt 0:00:21]} Bg5 {[%emt 0:00:00]} 33. f4 {[%emt 0:00:33]} e4+ {[%emt 0:00:00]} 34. Ke3 {[%emt 0:00:11]} Ne5 {[%emt 0:01:30]} 35. fxg5 {[%emt 0:00:24]} Ng4+ {[%emt 0:00:00]} 36. Kd2 {[%emt 0:00:06]} e3+ {[%emt 0:00:00]} 37. Kd3 {[%emt 0:00:42]} Nf2+ {[%emt 0:00:00]} 38. Kc2 {[%emt 0:00:07]} Ne4 {[%emt 0:00:00]} 39. Kd3 {[%emt 0:00:13]} Rxe2 {[%emt 0:00:00]} 40. Kxe2 {[%emt 0:00:15]} Nxc3+ {[%emt 0:00:18]} 41. Kxe3 {[%emt 0:01:55]} Nxd1+ {[%emt 0:00:04]} 42. Kd4 {[%emt 0:00:25]} Nf2 {[%emt 0:00:35]} 43. Ke5 {[%emt 0:00:42]} Ne4 {[%emt 0:01:15]} 44. g4 {[%emt 0:00:28]} Nxg5 {[%emt 0:00:23]} 45. gxf5 {[%emt 0:00:10]} Nf7+ {[%emt 0:00:13]} 46. Kf4 {[%emt 0:00:24]} exf5 {[%emt 0:00:52]} 47. Kxf5 {[%emt 0:00:07]} Kd6 {[%emt 0:00:08]} 48. Ke4 {[%emt 0:00:14]} Nd8 {[%emt 0:00:39]} 49. b4 {[%emt 0:01:16]} Nc6 {[%emt 0:00:06]} 50. Nd3 {[%emt 0:00:06]} a5 {[%emt 0:00:10]} 51. bxa5 {[%emt 0:00:08]} Nxa5 {[%emt 0:00:05]} 52. Kd4 {[%emt 0:00:20]} Nc6+ {[%emt 0:00:04]} 53. Kc3 {[%emt 0:00:05]} Kc7 {[%emt 0:00:06]} 54. a4 {[%emt 0:00:56]} bxa4 {[%emt 0:00:09]} 55. Nc5 {[%emt 0:00:03]} a3 {[%emt 0:00:09]} 56. Kb3 {[%emt 0:00:03]} Kb6 {[%emt 0:00:04]} 57. Kxa3 {[%emt 0:00:06]} Kxc5 {[%emt 0:00:04]} 1/2-1/2

[Event "FIDE World Cup O12-A 2024"]
[Site "Batumi"]
[Date "2024.06.23"]
[Round "1.9"]
[White "Li, Yiheng"]
[Black "Diasamidze, Rati"]
[Result "1/2-1/2"]
[ECO "C55"]
[WhiteElo "1886"]
[BlackElo "1646"]
[Annotator "NA RC"]
[PlyCount "99"]
[EventDate "2024.06.23"]
[EventType "swiss"]
[EventCountry "GEO"]
[SourceTitle "playchess.com"]
[Source "ChessBase"]
[SourceQuality "1"]
[TimeControl "5400+30"]

1. e4 {[%emt 0:00:03]} e5 {[%emt 0:00:06]} 2. Nf3 {[%emt 0:00:08]} Nc6 {[%emt 0:00:11]} 3. Bc4 {[%emt 0:00:05]} Nf6 {[%emt 0:00:23]} 4. d3 {[%emt 0:00:07]} Be7 {[%emt 0:00:37]} 5. O-O {[%emt 0:00:07]} d6 {[%emt 0:01:17]} 6. a4 {[%emt 0:02:02]} O-O {[%emt 0:01:33]} 7. Re1 {[%emt 0:04:21]} Bg4 {[%emt 0:05:05]} 8. c3 {[%emt 0:00:45]} d5 {[%emt 0:13:17]} 9. exd5 {[%emt 0:00:23]} Nxd5 {[%emt 0:04:08]} 10. h3 {[%emt 0:06:47]} Bh5 {[%emt 0:05:44]} 11. g4 {[%emt 0:09:22]} Bg6 {[%emt 0:01:42]} 12. Nxe5 {[%emt 0:02:22]} Nxe5 {[%emt 0:02:02]} 13. Rxe5 {[%emt 0:00:09]} Nb6 {[%emt 0:01:05]} 14. Re1 {[%emt 0:10:52]} Bd6 {[%emt 0:20:12]} 15. Be3 {[%emt 0:13:11]} Nxc4 {[%emt 0:08:29]} 16. dxc4 {[%emt 0:00:05]} b6 {[%emt 0:03:09]} 17. Qd5 {[%emt 0:11:40]} Kh8 {[%emt 0:05:22]} 18. Qg2 {[%emt 0:11:37]} f5 {[%emt 0:05:15]} 19. f3 {[%emt 0:01:41]} Re8 {[%emt 0:06:36]} 20. Bf2 {[%emt 0:03:33]} Rxe1+ {[%emt 0:02:45]} 21. Bxe1 {[%emt 0:00:05]} Bc5+ {[%emt 0:00:24]} 22. Bf2 {[%emt 0:02:22]} Qd1+ {[%emt 0:02:52]} 23. Qf1 {[%emt 0:01:34]} Qxf3 {[%emt 0:05:41]} 24. Bxc5 {[%emt 0:00:09]} Qxf1+ {[%emt 0:00:36]} 25. Kxf1 {[%emt 0:00:07]} bxc5 {[%emt 0:00:10]} 26. Nd2 {[%emt 0:02:40]} Rb8 {[%emt 0:01:20]} 27. b3 {[%emt 0:00:06]} h6 {[%emt 0:01:24]} 28. Re1 {[%emt 0:00:35]} fxg4 {[%emt 0:00:39]} 29. hxg4 {[%emt 0:00:07]} Bc2 {[%emt 0:00:54]} 30. Re5 {[%emt 0:04:55]} Bxb3 {[%emt 0:00:39]} 31. Nxb3 {[%emt 0:02:43]} Rxb3 {[%emt 0:00:04]} 32. Rxc5 {[%emt 0:00:09]} Rxc3 {[%emt 0:01:23]} 33. Rxc7 {[%emt 0:00:07]} a5 {[%emt 0:00:30]} 34. Rc5 {[%emt 0:00:20]} g6 {[%emt 0:00:54]} 35. Ke2 {[%emt 0:04:45]} Kg7 {[%emt 0:00:35]} 36. Kd2 {[%emt 0:02:33]} Rg3 {[%emt 0:00:16]} 37. Rxa5 {[%emt 0:00:22]} Rxg4 {[%emt 0:00:08]} 38. Rc5 {[%emt 0:03:19]} h5 {[%emt 0:00:23]} 39. a5 {[%emt 0:01:07]} h4 {[%emt 0:00:38]} 40. Rc7+ {[%emt 0:01:58]} Kh6 {[%emt 0:00:45]} 41. a6 {[%emt 0:00:53]} h3 {[%emt 0:00:35]} 42. Rc8 {[%emt 0:00:39]} Rg2+ {[%emt 0:00:34]} 43. Ke3 {[%emt 0:00:31]} Ra2 {[%emt 0:00:17]} 44. Rh8+ {[%emt 0:00:31]} Kg7 {[%emt 0:00:07]} 45. Rh4 {[%emt 0:00:23]} Rxa6 {[%emt 0:00:20]} 46. Kf3 {[%emt 0:00:31]} Ra3+ {[%emt 0:00:42]} 47. Kg4 {[%emt 0:00:06]} Rc3 {[%emt 0:00:19]} 48. Rxh3 {[%emt 0:00:29]} Rxc4+ {[%emt 0:00:06]} 49. Kg5 {[%emt 0:00:05]} Rc5+ {[%emt 0:00:46]} 50. Kg4 {[%emt 0:00:05]} 1/2-1/2

[Event "FIDE World Cup O12-A 2024"]
[Site "Batumi"]
[Date "2024.06.23"]
[Round "1.10"]
[White "Todua, Andria"]
[Black "Yang, ZiLong"]
[Result "0-1"]
[ECO "B48"]
[WhiteElo "1599"]
[BlackElo "1874"]
[Annotator "NA RC"]
[PlyCount "82"]
[EventDate "2024.06.23"]
[EventType "swiss"]
[EventCountry "GEO"]
[SourceTitle "playchess.com"]
[Source "ChessBase"]
[SourceQuality "1"]
[TimeControl "5400+30"]

1. e4 {[%emt 0:00:14]} c5 {[%emt 0:00:38]} 2. Nf3 {[%emt 0:00:07]} e6 {[%emt 0:00:04]} 3. d4 {[%emt 0:00:08]} cxd4 {[%emt 0:00:37]} 4. Nxd4 {[%emt 0:00:14]} Nc6 {[%emt 0:00:43]} 5. Nc3 {[%emt 0:00:32]} Qc7 {[%emt 0:00:20]} 6. Be3 {[%emt 0:01:24]} a6 {[%emt 0:00:19]} 7. a3 {[%emt 0:00:19]} b5 {[%emt 0:00:53]} 8. f4 {[%emt 0:18:54]} Bb7 {[%emt 0:03:08]} 9. Be2 {[%emt 0:02:26]} Nf6 {[%emt 0:02:41]} 10. e5 {[%emt 0:02:09]} Nxd4 {[%emt 0:01:00]} 11. Qxd4 {[%emt 0:01:00]} Nd5 {[%emt 0:00:34]} 12. Nxd5 {[%emt 0:02:25]} Bxd5 {[%emt 0:00:08]} 13. O-O {[%emt 0:00:37]} Qxc2 {[%emt 0:12:51]} 14. Bf3 {[%emt 0:01:13]} Bxf3 {[%emt 0:01:00]} 15. Rxf3 {[%emt 0:00:05]} Rc8 {[%emt 0:09:14]} 16. Rf2 {[%emt 0:04:02]} Qc6 {[%emt 1:04:20]} 17. Rd2 {[%emt 0:01:59]} Qb7 {[%emt 0:00:00]} 18. Qd3 {[%emt 0:02:21]} Be7 {[%emt 0:00:00]} 19. a4 {[%emt 0:05:28]} Bb4 {[%emt 0:00:00]} 20. Rdd1 {[%emt 0:00:19]} bxa4 {[%emt 0:00:00]} 21. Rxa4 {[%emt 0:00:18]} a5 {[%emt 0:00:00]} 22. Bd2 {[%emt 0:02:03]} Qb6+ {[%emt 0:00:00]} 23. Kh1 {[%emt 0:00:46]} O-O {[%emt 0:00:00]} 24. Bxb4 {[%emt 0:00:09]} axb4 {[%emt 0:00:00]} 25. Ra6 {[%emt 0:00:37]} Qc5 {[%emt 0:00:00]} 26. Rd6 {[%emt 0:00:15]} Qf2 {[%emt 0:00:00]} 27. Qd2 {[%emt 0:01:28]} Rc2 {[%emt 0:00:00]} 28. Qxf2 {[%emt 0:00:12]} Rxf2 {[%emt 0:00:00]} 29. b3 {[%emt 0:00:43]} Rxf4 {[%emt 0:00:00]} 30. Rxd7 {[%emt 0:00:05]} Re4 {[%emt 0:00:00]} 31. R7d4 {[%emt 0:00:11]} Rxe5 {[%emt 0:00:00]} 32. Rxb4 {[%emt 0:00:05]} h5 {[%emt 0:00:00]} 33. h3 {[%emt 0:00:34]} Rc8 {[%emt 0:00:00]} 34. Rb7 {[%emt 0:00:25]} Rf5 {[%emt 0:00:00]} 35. Rd2 {[%emt 0:01:24]} h4 {[%emt 0:00:00]} 36. Rd4 {[%emt 0:04:07]} g5 {[%emt 0:00:00]} 37. Kh2 {[%emt 0:00:36]} Rc1 {[%emt 0:00:00]} 38. Rg4 {[%emt 0:00:37]} Rff1 {[%emt 0:00:00]} 39. Rxg5+ {[%emt 0:00:23]} Kf8 {[%emt 0:00:00]} 40. Rb8+ {[%emt 0:00:20]} Ke7 {[%emt 0:00:00]} 41. Rb7+ {[%emt 0:00:09]} Kf6 {[%emt 0:00:00]} 0-1

[Event "FIDE World Cup O12-A 2024"]
[Site "Batumi"]
[Date "2024.06.23"]
[Round "1.11"]
[White "Mamikonyan, Artem T"]
[Black "Tavberidze, Alexandre"]
[Result "1-0"]
[ECO "B10"]
[WhiteElo "1855"]
[BlackElo "1529"]
[Annotator "NA RC"]
[PlyCount "157"]
[EventDate "2024.06.23"]
[EventType "swiss"]
[EventCountry "GEO"]
[SourceTitle "playchess.com"]
[Source "ChessBase"]
[SourceQuality "1"]
[TimeControl "5400+30"]

1. e4 {[%emt 0:00:02]} c6 {[%emt 0:00:05]} 2. Nf3 {[%emt 0:00:12]} d5 {[%emt 0:00:05]} 3. d3 {[%emt 0:00:11]} dxe4 {[%emt 0:00:34]} 4. dxe4 {[%emt 0:00:06]} Qxd1+ {[%emt 0:00:31]} 5. Kxd1 {[%emt 0:00:10]} Bg4 {[%emt 0:00:57]} 6. Be2 {[%emt 0:00:13]} e6 {[%emt 0:01:27]} 7. Nbd2 {[%emt 0:00:10]} Bc5 {[%emt 0:01:10]} 8. Ne1 {[%emt 0:00:27]} Bxe2+ {[%emt 0:01:14]} 9. Kxe2 {[%emt 0:00:06]} Nd7 {[%emt 0:01:32]} 10. Nd3 {[%emt 0:00:16]} Bb6 {[%emt 0:00:48]} 11. Nc4 {[%emt 0:00:11]} Bc7 {[%emt 0:00:46]} 12. Be3 {[%emt 0:00:23]} Ngf6 {[%emt 0:00:46]} 13. f3 {[%emt 0:00:06]} O-O {[%emt 0:05:40]} 14. Rad1 {[%emt 0:01:41]} Nb6 {[%emt 0:04:12]} 15. Na5 {[%emt 0:16:19]} Rab8 {[%emt 0:04:34]} 16. Nc5 {[%emt 0:03:54]} Nc8 {[%emt 0:03:45]} 17. Naxb7 {[%emt 0:07:30]} Re8 {[%emt 0:18:04]} 18. b3 {[%emt 0:00:58]} Bb6 {[%emt 0:02:29]} 19. Nd6 {[%emt 0:00:18]} Nxd6 {[%emt 0:01:31]} 20. Rxd6 {[%emt 0:00:13]} Rbc8 {[%emt 0:00:50]} 21. Rhd1 {[%emt 0:00:09]} h6 {[%emt 0:06:44]} 22. c4 {[%emt 0:00:52]} Red8 {[%emt 0:13:59]} 23. Rxd8+ {[%emt 0:00:06]} Rxd8 {[%emt 0:00:07]} 24. Rxd8+ {[%emt 0:00:16]} Bxd8 {[%emt 0:00:04]} 25. Nb7 {[%emt 0:00:05]} Bb6 {[%emt 0:00:34]} 26. Bxb6 {[%emt 0:00:20]} axb6 {[%emt 0:00:05]} 27. a4 {[%emt 0:00:14]} Kf8 {[%emt 0:00:22]} 28. c5 {[%emt 0:00:22]} Nd7 {[%emt 0:01:07]} 29. cxb6 {[%emt 0:01:46]} Nxb6 {[%emt 0:00:05]} 30. a5 {[%emt 0:00:05]} Nc8 {[%emt 0:00:24]} 31. Nd8 {[%emt 0:00:13]} Na7 {[%emt 0:00:56]} 32. Kd3 {[%emt 0:00:36]} Ke7 {[%emt 0:00:11]} 33. Nb7 {[%emt 0:00:07]} Kd7 {[%emt 0:00:39]} 34. Kc4 {[%emt 0:00:06]} Kc7 {[%emt 0:01:12]} 35. Nc5 {[%emt 0:00:07]} Nb5 {[%emt 0:01:21]} 36. Nd3 {[%emt 0:00:07]} f6 {[%emt 0:00:45]} 37. Kc5 {[%emt 0:00:06]} e5 {[%emt 0:01:18]} 38. f4 {[%emt 0:00:13]} exf4 {[%emt 0:00:54]} 39. Nxf4 {[%emt 0:00:15]} Kb7 {[%emt 0:00:25]} 40. Ne6 {[%emt 0:00:09]} Nc3 {[%emt 0:01:52]} 41. Nxg7 {[%emt 0:00:43]} Nxe4+ {[%emt 0:00:09]} 42. Kb4 {[%emt 0:00:04]} Ka6 {[%emt 0:00:21]} 43. Ne6 {[%emt 0:00:07]} Nf2 {[%emt 0:00:54]} 44. Nc5+ {[%emt 0:01:52]} Ka7 {[%emt 0:01:39]} 45. Nd7 {[%emt 0:00:11]} f5 {[%emt 0:00:57]} 46. Ne5 {[%emt 0:00:07]} Kb7 {[%emt 0:00:32]} 47. Nf7 {[%emt 0:01:39]} h5 {[%emt 0:01:46]} 48. Nd6+ {[%emt 0:00:07]} Ka6 {[%emt 0:00:28]} 49. Nxf5 {[%emt 0:00:09]} Nd3+ {[%emt 0:00:17]} 50. Kc3 {[%emt 0:00:31]} Nf4 {[%emt 0:00:16]} 51. g3 {[%emt 0:00:39]} Nd5+ {[%emt 0:00:05]} 52. Kc4 {[%emt 0:00:06]} Kxa5 {[%emt 0:00:49]} 53. Ng7 {[%emt 0:00:19]} Nf6 {[%emt 0:00:16]} 54. Kc5 {[%emt 0:00:13]} Ng4 {[%emt 0:00:41]} 55. h4 {[%emt 1:11:33]} Nf6 {[%emt 0:24:46]} 56. b4+ {[%emt 0:00:00]} Ka4 {[%emt 0:00:00]} 57. Kc4 {[%emt 0:00:00]} Ka3 {[%emt 0:00:00]} 58. Kc5 {[%emt 0:00:00]} Kb3 {[%emt 0:00:00]} 59. Nf5 {[%emt 0:00:00]} Ne4+ {[%emt 0:00:00]} 60. Kxc6 {[%emt 0:00:00]} Kxb4 {[%emt 0:00:00]} 61. Kd5 {[%emt 0:00:00]} Nf2 {[%emt 0:00:00]} 62. Ng7 {[%emt 0:00:00]} Kc3 {[%emt 0:00:00]} 63. Nxh5 {[%emt 0:00:00]} Kd3 {[%emt 0:00:00]} 64. Ke5 {[%emt 0:00:00]} Ke3 {[%emt 0:00:00]} 65. Kf5 {[%emt 0:00:00]} Kf3 {[%emt 0:00:00]} 66. Kg6 {[%emt 0:00:00]} Ng4 {[%emt 0:00:00]} 67. Kg5 {[%emt 0:00:00]} Nf2 {[%emt 0:00:00]} 68. Nf6 {[%emt 0:00:00]} Kxg3 {[%emt 0:00:00]} 69. h5 {[%emt 0:00:00]} Nh3+ {[%emt 0:00:00]} 70. Kf5 {[%emt 0:00:00]} Kh4 {[%emt 0:00:00]} 71. h6 {[%emt 0:00:00]} Ng5 {[%emt 0:00:00]} 72. Kg6 {[%emt 0:00:00]} Ne6 {[%emt 0:00:00]} 73. Nd7 {[%emt 0:00:00]} Ng5 {[%emt 0:00:00]} 74. Nc5 {[%emt 0:09:30]} Kg4 {[%emt 0:09:30]} 75. Ne4 {[%emt 0:00:00]} Ne6 {[%emt 0:00:00]} 76. Kf7 {[%emt 0:00:00]} Nd8+ {[%emt 0:00:00]} 77. Kg8 {[%emt 0:00:00]} Nc6 {[%emt 0:00:00]} 78. h7 {[%emt 0:00:00]} Ne7+ {[%emt 0:00:00]} 79. Kf7 {[%emt 0:00:00]} 1-0